[Event "Silves Open 2025"]
[Site "Fissul"]
[Date "2025.03.03"]
[Round "2.15"]
[White "Monteiro, Paulo Alexandre G"]
[Black "Santos, Jose P"]
[Result "1/2-1/2"]
[Annotator "TA"]
[ECO "D55"]
[WhiteElo "2221"]
[BlackElo "2273"]
[PlyCount "61"]
[EventDate "2025.03.03"]
[EventType "swiss"]
[EventCountry "POR"]
[SourceTitle "playchess.com"]
[Source "ChessBase"]
[SourceQuality "1"]
[TimeControl "5400+30"]

{[%evp 16,61,0,0,0,0,0,0,0,-4,17,19,15,15,30,26,29,22,26,17,25,26,52,47,86,76,101,82,111,96,86,92,142,157,318,300,397,85,129,75,50,10,25,1,8,-22,-22,-20]} 1. d4 {[%emt 1:31:00]} d5 {[%emt 1:31:00]} 2. c4 {[%emt 0:00:30]} e6 {[%emt 0:00:30]} 3. Nc3 {[%emt 0:00:30]} Nf6 {[%emt 0:00:30]} 4. Bg5 {[%emt 0:00:30]} Be7 {[%emt 0:00:30]} 5. e3 {[%emt 0:00:30]} O-O {[%emt 0:00:30]} 6. Nf3 {[%emt 0:00:30]} h6 {[%emt 0:00:30]} 7. Bxf6 {[%emt 0:00:30]} Bxf6 {[%emt 0:00:30]} 8. Qd2 {[%emt 0:00:30]} dxc4 $1 {[%emt 0:00:30][%mdl 4] outshines the older 8...b6.} 9. Bxc4 {[%emt 0:00:30]} c5 {[%emt 0:00:30] D55: Queen's Gambit Declined: 4 Bg5 Be7: Lines without ...h6 and 6...h6 7 Bxf6.} 10. O-O {[%emt 0:00:30]} cxd4 {[%emt 0:00:30]} 11. exd4 {[%emt 0:00:30]} Bd7 {[%emt 0:00:30]} 12. d5 $146 {[%emt 0:00:30]} (12. Ne4 Bc6 13. Nxf6+ Qxf6 14. Ne5 Rd8 15. Rfe1 Bd5 16. Bxd5 Rxd5 17. Qb4 Nd7 18. Qxb7 {1-0 Gabriel,C (2510)-Marciano,D (2495) Makarska 1996 (3)}) 12... Bxc3 {[%emt 0:00:30]} 13. Qxc3 {[%emt 0:00:30]} exd5 {[%emt 0:00:30]} 14. Bxd5 {[%emt 0:00:30]} Bc6 {[%emt 0:00:30]} 15. Bb3 {[%emt 0:00:30]} Bxf3 {[%emt 0:00:30]} 16. Qxf3 {[%emt 0:00:30]} Nc6 {[%emt 0:00:30]} 17. Rad1 {[%emt 0:00:30]} Qc7 {[%emt 0:00:30]} 18. Bd5 {[%emt 0:00:30]} Qe5 {[%emt 0:00:30]} 19. Rfe1 {[%emt 0:00:30] White has strong rooks and is better} Qxb2 {[%emt 0:00:30]} 20. Rb1 $1 {[%emt 0:00:30]} Qd2 {[%emt 0:00:30]} 21. Red1 $1 {[%emt 0:00:30]} Qg5 {[%emt 0:00:30]} 22. Rxb7 {[%emt 0:00:30]} Ne5 {[%emt 0:00:30]} 23. Qe4 {[%emt 0:00:30] aiming for f4.} Rae8 {[%emt 0:00:30]} (23... Rac8 $142) 24. f4 $16 {[%emt 0:00:30] White has more active pieces.} Qh5 {[%emt 0:00:30]} (24... Qg4 $16 25. Rc1 (25. fxe5 $2 Qxd1+ 26. Kf2 Qa1 $19) 25... Nd7) 25. Qa4 $1 $18 {[%emt 0:00:30]} Qh4 {[%emt 0:00:30][%cal Oe5f3] [#] ( -> ...Nf3+!)} 26. h3 $2 {[%emt 0:00:30] Black is weak on the light squares} (26. Qxa7 $2 Ng4 (26... Qxf4 27. Qd4 $14) 27. Rbb1 Qxh2+ (27... Nxh2 28. Qf2 $17) 28. Kf1 Qxf4+ (28... Re3 $2 29. Qxe3 Nxe3+ 30. Kf2 $19) 29. Bf3 Nh2+ 30. Kf2 Nxf3 $19) (26. Rxa7 Nf3+ (26... Nd3 $2 27. g3 $18) 27. gxf3 Re2 28. Bxf7+ Kh8 (28... Rxf7 29. Ra8+ Kh7 30. Rh8+ Kxh8 31. Rd8+ Qxd8 32. Kf1 Qd2 33. Qa8+ Kh7 34. Qe4+ Rxe4 35. fxe4 Rb7 36. h4 Rb1#) 29. Bg6 Qxh2+ 30. Kf1 Qg2#) (26. g3 $1 $18 {[%cal Rg3h4] is the precise move to win.} Qg4 27. Qb3 (27. Rxa7 Nf3+ 28. Bxf3 Qxf3 $15)) 26... Rd8 {[%emt 0:00:30][%cal Od8d5] [#] White must now prevent ...Rxd5!.} 27. Qe4 {[%emt 0:00:30]} (27. Qxa7 Rxd5 (27... Qxf4 28. Rb3 $11) 28. Rxd5 Nf3+ (28... Qxf4 $2 29. Qf2 $18) 29. gxf3 Qg3+ (29... Qxf4 $2 30. Kg2 $18) 30. Kh1 Qxh3+ (30... Qxf4 $2 31. Kg2 $18) (30... Qxf3+ 31. Kg1 $17) 31. Kg1 Qg3+ (31... Qxf3 32. Rdd7 $16) 32. Kh1 Qxf3+ (32... Qxf4 $2 33. Kg2 $18) 33. Kg1 Qxd5 $17) (27. Qd4 $142 $1 {[%cal Rd4e5]} Nd7 28. Qxa7 (28. Rxa7 Nf6 $11) (28. Bb3 Nc5 $16)) 27... Ng6 $16 {[%emt 0:00:30]} 28. Rf1 {[%emt 0:00:30]} ({Don't play} 28. Qxg6 Rxd5 (28... Qxf4 $2 29. Rxf7 Qxf7 30. Bxf7+ $18) 29. Qc2 Rxd1+ 30. Qxd1 Qxf4 $17) (28. Rxa7 $5 Nxf4 29. Rxf7 (29. Bxf7+ Kh8 $14) 29... Rxd5 (29... Rxf7 30. Bxf7+ Kxf7 31. Qc4+ Kf8 32. Rxd8+ Qxd8 33. Qxf4+ Kg8 34. Qc4+ Kh8 35. Qe2 $11) 30. Rxf8+ Kxf8 31. Rf1 $14 (31. Rxd5 $2 Nxh3+ 32. gxh3 Qxe4 $19)) 28... Qf6 {[%emt 0:00:30] Against f5} 29. Kh1 {[%emt 0:00:30]} (29. Rxa7 $2 {too greedy.} Qb6+ 30. Kh1 Qxa7 $19) 29... a6 {[%emt 0:00:30]} 30. g3 {[%emt 0:00:30] [#]} Ne7 $1 {[%emt 0:00:30]} 31. Qxe7 {[%emt 0:00:30] Weighted Error Value: White=0.33/Black=0.29 (precise)   Loses game:     	---       	Black=1      Missed win:     	White=1     	---        Mistake:       	White=1     	Black=1      Inaccurate:     	White=2     	Black=5      OK:         	White=6     	Black=11     Best:        	White=1     	---        Strong:       	White=3     	---} (31. Rxe7 Rxd5) 1/2-1/2

[Event "Silves Open 2025"]
[Site "Fissul"]
[Date "2025.03.03"]
[Round "2.17"]
[White "Milat, Marcel"]
[Black "Albuquerque, Eduardo Ferreira"]
[Result "1-0"]
[Annotator "TA"]
[ECO "A14"]
[WhiteElo "2190"]
[BlackElo "1897"]
[PlyCount "73"]
[EventDate "2025.03.03"]
[EventType "swiss"]
[EventCountry "POR"]
[SourceTitle "playchess.com"]
[Source "ChessBase"]
[SourceQuality "1"]
[TimeControl "5400+30"]

{[%evp 19,73,36,71,20,31,36,23,25,36,36,41,19,21,17,6,-18,8,4,0,0,22,0,31,12,64,62,83,0,0,14,17,0,0,0,17,12,94,84,145,133,141,110,497,504,482,505,485,480,522,516,1010,514,508,503,487,411]} 1. Nf3 {[%emt 1:31:00]} Nf6 {[%emt 1:31:00]} 2. c4 {[%emt 0:00:30]} e6 {[%emt 0:00:30]} 3. g3 {[%emt 0:00:30]} d5 {[%emt 0:00:30]} 4. Bg2 {[%emt 0:00:30]} Be7 {[%emt 0:00:30]} 5. O-O {[%emt 0:00:30]} O-O {[%emt 0:00:30]} 6. b3 {[%emt 0:00:30]} c5 {[%emt 0:00:30]} 7. Bb2 {[%emt 0:00:30]} Nc6 {[%emt 0:00:30]} 8. cxd5 {[%emt 0:00:30]} Nxd5 {[%emt 0:00:30]} 9. d4 {[%emt 0:00:30]} cxd4 {[%emt 0:00:30]} 10. Nxd4 {[%emt 0:00:30]} Bf6 {[%emt 0:00:30]} 11. Na3 {[%emt 0:00:30] A14: English Opening: 1...e6 with b3 by White.} (11. Nxc6 $16 bxc6 12. Qc2) 11... Bxd4 $146 {[%emt 0:00:30]} (11... Bd7 12. Nc4 Nxd4 13. Bxd4 Bc6 14. Ne5 Rc8 15. Rc1 Bxe5 16. Bxe5 Qa5 17. Ba1 Qxa2 18. e4 Ne7 19. Qg4 e5 20. Bxe5 Ng6 21. Bd6 {½-½ Grischuk,A (2761)-Karjakin,S (2781) Paris GCT Blitz 2017 (16)}) 12. Bxd4 {[%emt 0:00:30]} Qe7 {[%emt 0:00:30] Dodges Bc5} 13. Bb2 {[%emt 0:00:30][%cal Od1c1] White has an edge.} Rd8 {[%emt 0:00:30]} 14. Qc1 {[%emt 0:00:30] Prevents Ne3} e5 {[%emt 0:00:30]} 15. Rd1 {[%emt 0:00:30]} (15. Nc4 $5) 15... Be6 {[%emt 0:00:30]} 16. Nc4 {[%emt 0:00:30]} Rac8 {[%emt 0:00:30]} 17. Qb1 {[%emt 0:00:30]} Qc7 {[%emt 0:00:30]} 18. Qe4 {[%emt 0:00:30]} f6 {[%emt 0:00:30]} 19. Rac1 {[%emt 0:00:30]} Qb8 {[%emt 0:00:30]} 20. Qh4 {[%emt 0:00:30]} Nde7 {[%emt 0:00:30]} 21. Be4 {[%emt 0:00:30] This pair of bishops is nice.} Nf5 {[%emt 0:00:30]} (21... Ng6 $11 22. Qh5 Rxd1+ 23. Rxd1 Rd8) 22. Qh3 $1 $14 {[%emt 0:00:30]} g6 {[%emt 0:00:30] [#]} 23. e3 {[%emt 0:00:30]} ({White should try} 23. Bxf5 $1 $16 Bxf5 24. Qh4) 23... Rxd1+ {[%emt 0:00:30]} 24. Rxd1 {[%emt 0:00:30]} b5 {[%emt 0:00:30]} 25. g4 {[%emt 0:00:30]} Nfe7 {[%emt 0:00:30]} 26. Nd2 $36 {[%emt 0:00:30][%cal Bc4d2,Bd2e4,Be4f6][%mdl 2080] Black is under pressure.} Rd8 {[%emt 0:00:30]} 27. Qf3 {[%emt 0:00:30]} Bd5 {[%emt 0:00:30]} (27... Qc8 $11 28. h3 (28. Qxf6 Bxb3 29. Rc1 Qxg4+ 30. Bg2 Rf8 $17) 28... f5) 28. Bxd5+ $16 {[%emt 0:00:30]} (28. Qxf6 $2 Bxe4 29. Qe6+ Kg7 30. Nxe4 Rxd1+ $19) 28... Nxd5 {[%emt 0:00:30]} ({Black should try} 28... Rxd5 29. Ne4 (29. Qxf6 Qd8 $16) 29... Rxd1+ 30. Qxd1 Kg7) 29. Ne4 {[%emt 0:00:30]} Nce7 {[%emt 0:00:30]} 30. h3 {[%emt 0:00:30] White has more active pieces.} (30. Nxf6+ $6 Nxf6 31. Rxd8+ Qxd8 $11) 30... Qb6 {[%emt 0:00:30][%mdl 8192] [#] Loses the game.} (30... Rf8 $16 {is more resistant.} 31. Nc5 Qd6) 31. Nxf6+ $1 $18 {[%emt 0:00:30][%mdl 512] White is clearly winning.} Nxf6 {[%emt 0:00:30]} 32. Rxd8+ {[%emt 0:00:30]} ({Stronger than} 32. Bxe5 Rxd1+ 33. Qxd1 Ne4 $17) 32... Qxd8 {[%emt 0:00:30]} 33. Qxf6 {[%emt 0:00:30] KQB-KQN. White is a pawn up.} Qd1+ {[%emt 0:00:30]} 34. Kh2 {[%emt 0:00:30][%cal Ob2e5]} Nd5 {[%emt 0:00:30]} (34... Qd2 $142 35. Bxe5 (35. Qxe5 Qxf2+ 36. Kh1 Qf1+ 37. Kh2 Qf2+ 38. Kh1 Qf1+ 39. Kh2 Qf2+ $11) 35... Nf5 36. Qh8+ (36. gxf5 Qxf2+ 37. Kh1 Qf1+ 38. Kh2 Qf2+ 39. Kh1 Qf1+ 40. Kh2 Qf2+ $11) 36... Kf7 37. Qxh7+ (37. gxf5 Qxf2+ 38. Kh1 Qf1+ 39. Kh2 Qf2+ 40. Kh1 Qf1+ 41. Kh2 Qf2+ $11) 37... Kf8 38. Qh8+ (38. gxf5 Qxf2+ 39. Kh1 Qf1+ 40. Kh2 Qf2+ 41. Kh1 Qf1+ 42. Kh2 Qf2+ $11) 38... Ke7 39. Qf6+ (39. gxf5 Qxf2+ 40. Kh1 Qf1+ 41. Kh2 Qf2+ 42. Kh1 Qf1+ 43. Kh2 Qf2+ $11) 39... Kd7) 35. Qe6+ {[%emt 0:00:30]} Kf8 {[%emt 0:00:30]} 36. Bxe5 {[%emt 0:00:30] White wants to mate with Bd6+.} Qf3 {[%emt 0:00:30]} 37. Bg3 {[%emt 0:00:30] Weighted Error Value: White=0.34/Black=0.48  Loses game:     	---       	Black=1      Mistake:       	White=1     	Black=4      Inaccurate:     	White=1     	Black=2      OK:         	White=9     	Black=7      Best:        	White=1     	Black=3      Strong:       	White=1     	---        Brilliant:      	White=1     	---} 1-0

[Event "Silves Open 2025"]
[Site "Fissul"]
[Date "2025.03.03"]
[Round "2.19"]
[White "Dias, Ivo Rodrigues"]
[Black "Jeremias, Damaim"]
[Result "1-0"]
[Annotator "TA"]
[ECO "B40"]
[WhiteElo "2097"]
[BlackElo "1690"]
[PlyCount "47"]
[EventDate "2025.03.03"]
[EventType "swiss"]
[EventCountry "POR"]
[SourceTitle "playchess.com"]
[Source "ChessBase"]
[SourceQuality "1"]
[TimeControl "5400+30"]

{[%evp 9,47,40,47,47,46,48,45,45,42,7,91,65,87,82,95,98,173,149,176,101,308,307,299,304,308,293,522,522,516,522,966,967,802,811,1035,985,1251,1090,1820,1882]} 1. e4 {[%emt 1:31:00]} c5 {[%emt 1:31:00]} 2. Nf3 {[%emt 0:00:30][%cal Bg1f3,Bf3d4,Bd4b5,Bb5d6][%mdl 32]} e6 {[%emt 0:00:30]} 3. g3 {[%emt 0:00:30]} g6 {[%emt 0:00:30]} 4. Bg2 {[%emt 0:00:30]} Bg7 {[%emt 0:00:30]} 5. d4 {[%emt 0:00:30]} cxd4 {[%emt 0:00:30]} 6. Nxd4 {[%emt 0:00:30] B40: Sicilian: 2...e6, Unusual lines.} Ne7 {[%emt 0:00:30]} 7. Nc3 {[%emt 0:00:30]} O-O {[%emt 0:00:30]} 8. O-O {[%emt 0:00:30] White is slightly better.} Nbc6 {[%emt 0:00:30]} 9. Ndb5 {[%emt 0:00:30]} a6 {[%emt 0:00:30]} (9... d5 $1 $11 {remains equal.}) 10. Nd6 $16 {[%emt 0:00:30]} Qc7 {[%emt 0:00:30]} 11. Be3 {[%emt 0:00:30] Prevents Nd4.} Be5 $146 {[%emt 0:00:30]} (11... b5 12. f4 b4 13. Na4 Rb8 14. Rb1 a5 15. Nc5 Rd8 16. e5 Nf5 17. Bf2 Nfe7 {1-0 Franco Valencia,B (2155)-Castrillon Gomez,M (2027) COL-ch sf (Women) 2009 (2.1)}) 12. Nc4 $36 {[%emt 0:00:30][%mdl 2048] White has strong initiative. White is more active.} Bg7 {[%emt 0:00:30]} (12... b5 $16) 13. Bb6 $18 {[%emt 0:00:30]} Qb8 {[%emt 0:00:30]} 14. f4 {[%emt 0:00:30]} (14. Qd6 $18) 14... f5 $2 {[%emt 0:00:30] [#] Black cannot hold the game after this.} (14... d5 $16) 15. e5 {[%emt 0:00:30]} Nd8 {[%emt 0:00:30] Black is weak on the dark squares} 16. Na4 {[%emt 0:00:30]} Nf7 {[%emt 0:00:30]} 17. Nc5 {[%emt 0:00:30]} Nd5 $2 {[%emt 0:00:30]} (17... g5 {was called for.} 18. Qd3 (18. Nxd7 Bxd7 19. Qxd7 Qc8 $18) 18... gxf4 19. gxf4 Ng6) 18. Bxd5 {[%emt 0:00:30] White is clearly winning.} exd5 {[%emt 0:00:30]} 19. Qxd5 {[%emt 0:00:30]} Re8 {[%emt 0:00:30]} 20. Nd6 {[%emt 0:00:30] Excellent horsemanship.} Rf8 {[%emt 0:00:30]} 21. a4 {[%emt 0:00:30][%cal Ba2a4,Ba4a5,Ba5b6][%mdl 32]} h5 {[%emt 0:00:30]} 22. a5 {[%emt 0:00:30]} Bh6 {[%emt 0:00:30] [#]} 23. Bd8 $1 {[%emt 0:00:30][%mdl 512]} b5 {[%emt 0:00:30]} (23... Qxd6 24. exd6) 24. axb6 {[%emt 0:00:30] Weighted Error Value: White=0.06 (flawless) /Black=1.26  Loses game:     	---       	Black=1      Mistake:       	White=1     	Black=3      Inaccurate:     	White=1     	Black=1      OK:         	White=5     	Black=8      Best:        	White=3     	---} 1-0

[Event "Silves Open 2025"]
[Site "Fissul"]
[Date "2025.03.03"]
[Round "2.20"]
[White "Sousa, Carlos Fantasia"]
[Black "Nguyen, Anh Khoi"]
[Result "0-1"]
[Annotator "TA"]
[ECO "B28"]
[WhiteElo "1752"]
[BlackElo "2520"]
[PlyCount "96"]
[EventDate "2025.03.03"]
[EventType "swiss"]
[EventCountry "POR"]
[SourceTitle "playchess.com"]
[Source "ChessBase"]
[SourceQuality "1"]
[TimeControl "5400+30"]

{[%evp 11,96,-4,0,-12,6,3,-9,-68,-29,-266,-50,-50,-40,-30,-46,-48,0,-8,-7,0,12,12,-2,-63,-56,-106,-95,-94,-91,-91,-91,-110,-75,-78,-72,-129,-118,-128,-121,-144,-149,-144,-144,-151,-146,-136,-138,-239,-229,-206,-202,-258,-209,-207,-237,-229,-247,-256,-214,-434,-304,-759,-766,-581,-714,-702,-921,-756,-654,-6587,-6397,-1838,-1914,-10108,-10287,-5073,-4873,-6207,-5289,-29974,-29972,-29982,-29983,-29983,-29983,-29982,-310]} 1. e4 {[%emt 1:31:00]} c5 {[%emt 1:31:00]} 2. Nf3 {[%emt 0:00:30]} a6 {[%emt 0:00:30]} 3. d4 {[%emt 0:00:30]} cxd4 {[%emt 0:00:30]} 4. Nxd4 {[%emt 0:00:30]} Nf6 {[%emt 0:00:30][%cal Bg8f6,Bf6d5,Bd5c3][%mdl 32]} 5. Nc3 {[%emt 0:00:30]} e5 {[%emt 0:00:30]} 6. Nb3 {[%emt 0:00:30]} Bb4 {[%emt 0:00:30][%cal Oe8g8]} 7. f3 {[%emt 0:00:30] B28: Sicilian: 2 Nf3 a6 (O'Kelly Variation).} d5 {[%emt 0:00:30]} 8. exd5 {[%emt 0:00:30]} Nxd5 {[%emt 0:00:30][%cal Oc8e6]} 9. Qd3 {[%emt 0:00:30]} (9. a3 $11 Bxc3+ 10. bxc3) 9... Nxc3 {[%emt 0:00:30]} 10. Qxd8+ {[%emt 0:00:30]} Kxd8 {[%emt 0:00:30]} 11. a3 {[%emt 0:00:30]} Nd5+ {[%emt 0:00:30]} 12. axb4 {[%emt 0:00:30]} Nxb4 {[%emt 0:00:30]} 13. Bg5+ $146 {[%emt 0:00:30]} (13. Bd3 Nxd3+ 14. cxd3 Nc6 15. O-O Kc7 16. f4 Nd4 17. Nxd4 exd4 18. f5 Rd8 19. Bf4+ {0-1 Marcin,M (2016)-Konak,J (2150) SVK-chT2D 0506 2005 (2.3)}) 13... f6 {[%emt 0:00:30]} 14. O-O-O+ {[%emt 0:00:30]} Kc7 {[%emt 0:00:30]} 15. Be3 {[%emt 0:00:30]} Be6 {[%emt 0:00:30]} 16. Nc5 {[%emt 0:00:30]} Bf7 {[%emt 0:00:30]} 17. Na4 {[%emt 0:00:30]} (17. Rd2 $11) 17... Nd7 $15 {[%emt 0:00:30]} 18. Rxd7+ {[%emt 0:00:30]} Kxd7 $17 {[%emt 0:00:30]} 19. Nb6+ {[%emt 0:00:30]} Kc7 {[%emt 0:00:30] [#]} 20. Nxa8+ {[%emt 0:00:30]} Rxa8 {[%emt 0:00:30]} 21. c3 {[%emt 0:00:30]} Nc6 {[%emt 0:00:30]} 22. Be2 {[%emt 0:00:30]} Na5 {[%emt 0:00:30]} 23. Rd1 {[%emt 0:00:30]} (23. f4 $142) 23... Bc4 {[%emt 0:00:30]} 24. Bxc4 {[%emt 0:00:30]} Nxc4 {[%emt 0:00:30][%mdl 4096] Endgame KRB-KRN. Black is a pawn up.} 25. Bf2 {[%emt 0:00:30]} Rd8 {[%emt 0:00:30]} 26. Rxd8 {[%emt 0:00:30]} Kxd8 {[%emt 0:00:30] KB-KN. Black is a pawn up.} 27. Kc2 {[%emt 0:00:30]} b5 {[%emt 0:00:30]} 28. b3 {[%emt 0:00:30]} Nd6 {[%emt 0:00:30]} 29. g4 {[%emt 0:00:30]} (29. Bc5 $17 Kd7 30. Kd3) 29... Kd7 {[%emt 0:00:30]} 30. Kd3 {[%emt 0:00:30]} Kc6 {[%emt 0:00:30]} 31. h4 {[%emt 0:00:30]} Kd5 {[%emt 0:00:30]} 32. Bb6 {[%emt 0:00:30]} g6 {[%emt 0:00:30]} 33. Bd8 {[%emt 0:00:30]} f5 {[%emt 0:00:30]} 34. h5 {[%emt 0:00:30]} Nb7 {[%emt 0:00:30]} 35. hxg6 $2 {[%emt 0:00:30]} (35. c4+ Kd6 36. Bb6) 35... hxg6 {[%emt 0:00:30]} (35... Nxd8 $2 {perishes.} 36. g7 fxg4 37. g8=Q+ $18 (37. g8=R Ne6 $18)) 36. Bh4 {[%emt 0:00:30]} (36. c4+ Kd6 37. Bb6) 36... Nc5+ $19 {[%emt 0:00:30]} 37. Kc2 {[%emt 0:00:30]} e4 {[%emt 0:00:30]} 38. gxf5 {[%emt 0:00:30]} gxf5 {[%emt 0:00:30]} (38... exf3 39. fxg6 Ne6 40. b4 $11) 39. fxe4+ {[%emt 0:00:30]} Kxe4 {[%emt 0:00:30]} 40. c4 {[%emt 0:00:30]} b4 {[%emt 0:00:30] [#]} 41. Be7 {[%emt 0:00:30]} Nd3 {[%emt 0:00:30]} 42. Kd2 {[%emt 0:00:30]} f4 {[%emt 0:00:30]} 43. c5 {[%emt 0:00:30]} Ne5 {[%emt 0:00:30] aiming for ...Nc6.} 44. Bd8 {[%emt 0:00:30]} Nc6 {[%emt 0:00:30]} 45. Bc7 {[%emt 0:00:30]} Nd4 {[%emt 0:00:30] Black mates.} 46. Bxf4 {[%emt 0:00:30]} Kxf4 {[%emt 0:00:30]} 47. Kd3 {[%emt 0:00:30]} Nc6 {[%emt 0:00:30]} 48. Kc4 {[%emt 0:00:30]} Ke5 {[%emt 0:00:30] Weighted Error Value: White=0.75/Black=0.13 (very precise)   Missed win:     	---       	Black=1      Mistake:       	White=7     	---        Inaccurate:     	---       	Black=3      OK:         	White=13    	Black=8      Best:        	White=3     	Black=1} 0-1

[Event "Silves Open 2025"]
[Site "Fissul"]
[Date "2025.03.03"]
[Round "2.21"]
[White "Nguyen, Tri Khoi"]
[Black "Paiva, Manuel Maria Fonseca"]
[Result "0-1"]
[Annotator "TA"]
[ECO "E06"]
[WhiteElo "1630"]
[BlackElo "1904"]
[PlyCount "80"]
[EventDate "2025.03.03"]
[EventType "swiss"]
[EventCountry "POR"]
[SourceTitle "playchess.com"]
[Source "ChessBase"]
[SourceQuality "1"]
[TimeControl "5400+30"]

{[%evp 19,80,0,6,-14,13,0,0,-3,-20,-112,-94,-175,-177,-177,-164,-385,-400,-391,-399,-380,-334,-329,-318,-668,-675,-682,-699,-688,-682,-679,-597,-863,-847,-1422,-1411,-1431,-1314,-1414,-1306,-1301,-1279,-1191,-1314,-1283,-1308,-1384,-1150,-1374,-1318,-1253,-1085,-1185,-1122,-2643,-2372,-29991,-29992,-29992,-29993,-29993,-29994,-29996,-29997]} 1. d4 {[%emt 0:00:04]} d5 {[%emt 0:03:40]} 2. c4 {[%emt 0:00:12]} e6 {[%emt 0:00:07]} 3. Nf3 {[%emt 0:00:23]} Nf6 {[%emt 0:00:11]} 4. g3 {[%emt 0:00:18]} Bb4+ {[%emt 0:00:18]} 5. Bd2 {[%emt 0:00:12]} Be7 {[%emt 0:00:05]} 6. Bg2 {[%emt 0:00:20]} O-O {[%emt 0:00:10]} 7. O-O {[%emt 0:00:17]} Nbd7 {[%emt 0:00:11]} 8. Qc2 {[%emt 0:05:54]} c6 {[%emt 0:08:38]} 9. Bf4 {[%emt 0:01:11]} b6 {[%emt 0:00:34]} 10. Nc3 {[%emt 0:04:50] 10.Nbd2 is setting a new trend.} Bb7 {[%emt 0:01:02] has lost popularity (10...dxc4).} 11. Rfe1 {[%emt 0:01:59] E06: Closed Catalan: Early deviations.} c5 {[%emt 0:06:24]} 12. Rad1 $146 {[%emt 0:04:45]} (12. dxc5 Bxc5 13. cxd5 Nxd5 14. Nxd5 Bxd5 15. e4 Bb7 16. e5 h6 17. Rad1 Qe7 18. a3 {0-1 Alvarez Pampillon,A (1795)-Del Prado Rodriguez,X (2062) Pontevedra op 7th 2019 (3)}) 12... cxd4 {[%emt 0:05:52]} 13. Nxd4 {[%emt 0:00:31] The position is equal.} e5 {[%emt 0:01:14]} 14. Bxe5 {[%emt 0:03:38]} Nxe5 $17 {[%emt 0:00:37]} 15. Nf5 {[%emt 0:00:07]} (15. cxd5 $17 Bc5 (15... Nxd5 $2 16. Nf5 $18) 16. Nb3) 15... Bc5 $19 {[%emt 0:08:08]} (15... Nxc4 16. Nxd5 Nxd5 (16... Bxd5 17. Bxd5 Nxd5 18. Qxc4 $16) 17. Bxd5 Bxd5 18. Rxd5 $18) 16. cxd5 {[%emt 0:01:10]} g6 {[%emt 0:05:08]} 17. Na4 $2 {[%emt 0:02:16] [#]} (17. Nd4 {might work better.}) 17... gxf5 {[%emt 0:01:41]} 18. Nxc5 {[%emt 0:00:09]} bxc5 {[%emt 0:00:13]} 19. Qxf5 {[%emt 0:00:39]} Ng6 {[%emt 0:02:28]} 20. e4 {[%emt 0:05:01]} Bc8 {[%emt 0:03:46]} 21. Qf3 {[%emt 0:00:16]} (21. Qg5) 21... Bg4 {[%emt 0:00:06]} 22. Qc3 {[%emt 0:00:59]} Bxd1 {[%emt 0:00:20]} 23. Rxd1 {[%emt 0:00:07]} Re8 {[%emt 0:00:30]} 24. Re1 {[%emt 0:00:20]} Qe7 {[%emt 0:00:56][%cal Of6d5]} 25. e5 {[%emt 0:06:39]} Nxe5 {[%emt 0:00:22][%cal Oe5f3] aiming for ...Nf3+!.} 26. d6 {[%emt 0:00:12] [#]} Nf3+ $1 {[%emt 0:00:33]} 27. Qxf3 {[%emt 0:06:09]} (27. Bxf3 Qxe1+) 27... Qxe1+ {[%emt 0:00:06]} 28. Bf1 {[%emt 0:00:12]} Qe5 {[%emt 0:00:43]} 29. d7 {[%emt 0:01:51]} Nxd7 {[%emt 0:00:44][%cal Oa8d8]} 30. Qg4+ {[%emt 0:00:10]} Kh8 {[%emt 0:00:21]} 31. Qxd7 {[%emt 0:00:23]} Rad8 {[%emt 0:00:08]} 32. Qxa7 {[%emt 0:01:16]} Re7 {[%emt 0:01:30]} 33. Qb6 {[%emt 0:00:30]} Rb8 {[%emt 0:00:58]} 34. Qh6 {[%emt 0:03:23]} Qxb2 {[%emt 0:02:18]} 35. Bd3 {[%emt 0:02:28]} f6 {[%emt 0:04:07]} (35... Qxa2 36. Qxh7#) 36. g4 {[%emt 0:00:50]} Rg7 {[%emt 0:01:50]} 37. h4 {[%emt 0:01:04]} Rxg4+ {[%emt 0:00:24] Black mates.} 38. Kf1 {[%emt 0:01:43]} Qa1+ {[%emt 0:01:39]} ({Not} 38... Qxa2 39. Qxh7#) 39. Ke2 {[%emt 0:00:02]} Rb2+ {[%emt 0:01:30]} 40. Kf3 {[%emt 0:00:15]} Qd1+ {[%emt 0:00:09] White did not feel at home in the position after the opening.   Weighted Error Value: White=0.85/Black=0.21 (precise)   Mistake:       	White=4     	---        Inaccurate:     	White=1     	Black=1      OK:         	White=2     	Black=4      Best:        	White=1     	Black=2} 0-1